fUSD/lending_fUSD_20250103
["ID","MTS","AMOUNT","RATE_DAILY","PERIOD"]
[347517969,1735899046435,-2100.0,9.203e-05,2]
[347517971,1735899046445,-1094.62,9.266e-05,2]
[347517973,1735899046454,-5519.88,9.266e-05,2]
[347517975,1735899046463,-8601.42,9.266e-05,2]
[347517977,1735899046472,-4538.46,9.266e-05,2]
[347517979,1735899046482,-5336.48,9.266e-05,2]
[347517981,1735899046492,-1921.95,9.266e-05,2]
[347517983,1735899046501,-8397.78,9.266e-05,2]
[347517985,1735899046510,-553.89,9.266e-05,2]
[347517987,1735899046519,-935.4,9.266e-05,2]
[347517989,1735899046528,-587.29,9.266e-05,2]
[347517991,1735899046538,-3088.2,9.266e-05,2]
[347517993,1735899046547,-2714.05,9.266e-05,2]
[347517994,1735899046556,-565.9,9.266e-05,2]
[347517996,1735899046566,-1297.19,9.266e-05,2]
[347517997,1735899046575,-1072.55392905,9.267e-05,3]
[347517998,1735899046585,-500.0,9.267e-05,2]
[347517999,1735899046594,-577.59,9.267e-05,2]
[347518000,1735899046604,-500.0,9.267e-05,2]
[347518001,1735899046613,-645.02,9.267e-05,2]
[347518002,1735899046623,-726.27,9.267e-05,2]
[347518003,1735899046632,-500.0,9.267e-05,2]
[347518004,1735899046642,-829.14,9.267e-05,2]
[347518005,1735899046652,-1142.1,9.267e-05,2]
[347518006,1735899046661,-500.0,9.267e-05,2]
[347518007,1735899046670,-1109.54,9.267e-05,2]
[347518008,1735899046679,-1942.66,9.267e-05,2]
[347518009,1735899046688,-500.0,9.267e-05,2]
[347518010,1735899046697,-500.0,9.267e-05,2]
[347518011,1735899046706,-500.0,9.267e-05,2]
[347518012,1735899046715,-500.0,9.267e-05,2]
[347518013,1735899046726,-683.56,9.267e-05,2]
[347518014,1735899046735,-1012.61,9.267e-05,2]
[347518015,1735899046745,-1140.29,9.267e-05,2]
[347518016,1735899046754,-500.0,9.267e-05,2]
[347518017,1735899046763,-500.0,9.267e-05,2]
[347518018,1735899046772,-2278.61,9.267e-05,2]
[347518019,1735899046782,-500.0,9.267e-05,2]
[347518020,1735899046793,-932.47,9.267e-05,2]
[347518021,1735899046804,-500.0,9.267e-05,2]
[347518022,1735899046813,-563.98,9.267e-05,2]
[347518023,1735899046822,-1971.07,9.267e-05,2]
[347518024,1735899046831,-500.0,9.267e-05,2]
[347518025,1735899046841,-868.76,9.267e-05,2]
[347518026,1735899046850,-675.57,9.267e-05,2]
[347518027,1735899046859,-500.0,9.267e-05,2]
[347518028,1735899046868,-500.0,9.267e-05,2]
[347518029,1735899046879,-1949.24,9.267e-05,2]
[347518030,1735899046889,-500.0,9.267e-05,2]
[347518031,1735899046900,-500.0,9.267e-05,2]
[347518032,1735899046910,-1022.48,9.267e-05,2]
[347518033,1735899046919,-500.0,9.267e-05,2]
[347518034,1735899046928,-500.0,9.267e-05,2]
[347518035,1735899046937,-1644.67,9.267e-05,2]
[347518036,1735899046946,-1142.02,9.267e-05,2]
[347518037,1735899046955,-589.18,9.267e-05,2]
[347518038,1735899046965,-500.0,9.267e-05,2]
[347518039,1735899046977,-894.74,9.267e-05,2]
[347518040,1735899046986,-1175.17,9.267e-05,2]
[347518041,1735899046995,-500.0,9.267e-05,2]
[347518042,1735899047005,-1975.39,9.267e-05,2]
[347518043,1735899047015,-1210.29,9.267e-05,2]
[347518044,1735899047024,-1116.18,9.267e-05,2]
[347518045,1735899047034,-500.0,9.267e-05,2]
[347518046,1735899047043,-500.0,9.267e-05,2]
[347518047,1735899047052,-500.0,9.267e-05,2]
[347518048,1735899047061,-1173.56,9.267e-05,2]
[347518049,1735899047071,-500.0,9.267e-05,2]
[347518050,1735899047080,-577.12,9.267e-05,2]
[347518051,1735899047089,-500.0,9.267e-05,2]
[347518053,1735899047099,-500.0,9.267e-05,2]
[347518054,1735899047109,-600.51,9.267e-05,2]
[347518055,1735899047118,-519.15,9.267e-05,2]
[347518056,1735899047128,-500.0,9.267e-05,2]
[347518057,1735899047138,-500.0,9.267e-05,2]
[347518058,1735899047148,-500.0,9.267e-05,2]
[347518059,1735899047157,-739.18,9.267e-05,2]
[347518060,1735899047166,-500.0,9.267e-05,2]
[347518061,1735899047176,-869.67,9.267e-05,2]
[347518062,1735899047186,-500.0,9.267e-05,2]
[347518063,1735899047196,-1873.32,9.267e-05,2]
[347518064,1735899047206,-500.0,9.267e-05,2]
[347518065,1735899047216,-500.0,9.267e-05,2]
[347518066,1735899047227,-500.0,9.267e-05,2]
[347518067,1735899047237,-867.14,9.267e-05,2]
[347518068,1735899047246,-1378.53,9.267e-05,2]
[347518069,1735899047255,-500.0,9.267e-05,2]
[347518070,1735899047264,-500.0,9.267e-05,2]
[347518071,1735899047274,-500.0,9.267e-05,2]
[347518072,1735899047283,-500.0,9.267e-05,2]
[347518073,1735899047293,-500.0,9.267e-05,2]
[347518074,1735899047302,-750.91,9.267e-05,2]
[347518075,1735899047311,-500.0,9.267e-05,2]
[347518076,1735899047320,-500.0,9.267e-05,2]
[347518077,1735899047329,-2478.91,9.267e-05,2]
[347518078,1735899047338,-500.0,9.267e-05,2]
[347518079,1735899047348,-500.0,9.267e-05,2]
[347518080,1735899047357,-500.0,9.267e-05,2]
[347518081,1735899047366,-500.0,9.267e-05,2]
[347518082,1735899047376,-500.0,9.267e-05,2]
[347518083,1735899047386,-569.44561945,9.267e-05,2]
[347518084,1735899047395,-204.90952584,9.267e-05,2]
[347518085,1735899047405,-2210.58,9.267e-05,2]
[347518086,1735899047414,-500.0,9.267e-05,2]
[347518087,1735899047423,-500.0,9.267e-05,2]
[347518088,1735899047432,-500.0,9.267e-05,2]
[347518089,1735899047442,-534.88,9.267e-05,2]
[347518090,1735899047451,-639.75,9.267e-05,2]
[347518091,1735899047460,-500.0,9.267e-05,2]
[347518092,1735899047471,-1309.77,9.267e-05,2]
[347518093,1735899047480,-500.0,9.267e-05,2]
[347518094,1735899047489,-500.0,9.267e-05,2]
[347518095,1735899047498,-500.0,9.267e-05,2]
[347518096,1735899047508,-500.0,9.267e-05,2]
[347518097,1735899047518,-500.0,9.267e-05,2]
[347518098,1735899047527,-636.37,9.267e-05,2]
[347518099,1735899047537,-500.0,9.267e-05,2]
[347518100,1735899047551,-1498.0,9.267e-05,2]
[347518101,1735899047567,-500.0,9.267e-05,2]
[347518102,1735899047581,-500.0,9.267e-05,2]
[347518103,1735899047596,-2334.84,9.267e-05,2]
[347518104,1735899047613,-517.26312622,9.267e-05,2]
[347518105,1735899047628,-593.46,9.267e-05,2]
[347518106,1735899047642,-500.0,9.267e-05,2]
[347518107,1735899047656,-500.0,9.267e-05,2]
[347518108,1735899047667,-797.27,9.267e-05,2]
[347518109,1735899047682,-500.0,9.267e-05,2]
[347518110,1735899047697,-500.0,9.267e-05,2]
[347518111,1735899047713,-500.0,9.267e-05,2]
[347518112,1735899047728,-500.0,9.267e-05,2]
[347518113,1735899047743,-500.0,9.267e-05,2]
[347518114,1735899047758,-500.0,9.267e-05,2]
[347518115,1735899047773,-997.48,9.267e-05,2]
[347518116,1735899047787,-749.14,9.267e-05,2]
[347518117,1735899047807,-500.0,9.267e-05,2]
[347518118,1735899047821,-895.35,9.267e-05,2]
[347518119,1735899047834,-1182.52,9.267e-05,2]
[347518120,1735899047846,-541.95,9.267e-05,2]
[347518121,1735899047861,-504.78,9.267e-05,2]
[347518122,1735899047874,-704.61,9.267e-05,2]
[347518123,1735899047885,-933.92,9.267e-05,2]
[347518124,1735899047898,-1126.99,9.267e-05,2]
[347518125,1735899047913,-500.0,9.267e-05,2]
[347518126,1735899047926,-1257.34,9.267e-05,2]
[347518127,1735899047937,-641.11,9.267e-05,2]
[347518128,1735899047950,-642.42,9.267e-05,2]
[347518129,1735899047963,-564.16,9.267e-05,2]
[347518130,1735899047976,-2527.17,9.267e-05,2]
[347518131,1735899047989,-500.0,9.267e-05,2]
[347518132,1735899048002,-1328.29,9.267e-05,2]
[347518133,1735899048014,-787.31,9.267e-05,2]
[347518134,1735899048027,-861.34,9.267e-05,2]
[347518135,1735899048039,-500.0,9.267e-05,2]
[347518136,1735899048051,-500.0,9.267e-05,2]
[347518137,1735899048070,-1626.55,9.267e-05,2]
[347518138,1735899048082,-500.0,9.267e-05,2]
[347518139,1735899048095,-621.33193517,9.267e-05,2]
[347518140,1735899048108,-500.0,9.267e-05,2]
[347518141,1735899048120,-558.89,9.267e-05,2]
[347518142,1735899048133,-500.0,9.267e-05,2]
[347518143,1735899048147,-500.0,9.267e-05,2]
[347518144,1735899048159,-500.0,9.267e-05,2]
[347518145,1735899048172,-1386.59,9.267e-05,2]
[347518146,1735899048185,-2785.41,9.267e-05,2]
[347518147,1735899048197,-500.0,9.267e-05,2]
[347518148,1735899048211,-875.27,9.267e-05,2]
[347518149,1735899048224,-523.51123551,9.267e-05,2]
[347518150,1735899048238,-1181.19,9.267e-05,2]
[347518151,1735899048251,-510.24,9.267e-05,2]
[347518152,1735899048263,-1343.36,9.267e-05,2]
[347518153,1735899048277,-500.0,9.267e-05,2]
[347518154,1735899048290,-806.48,9.267e-05,2]
[347518155,1735899048303,-500.0,9.267e-05,2]
[347518156,1735899048316,-2797.05,9.267e-05,2]
[347518157,1735899048329,-1493.46,9.267e-05,2]
[347518158,1735899048341,-3492.68,9.267e-05,2]
[347518159,1735899048355,-542.59,9.267e-05,2]
[347518160,1735899048368,-500.0,9.267e-05,2]
[347518161,1735899048381,-784.4,9.267e-05,2]
[347518162,1735899048395,-1640.36,9.267e-05,2]
[347518163,1735899048409,-1143.63,9.267e-05,2]
[347518164,1735899048422,-549.8,9.267e-05,2]
[347518165,1735899048434,-979.99,9.267e-05,2]
[347518166,1735899048447,-253.00416719,9.267e-05,2]
[347518167,1735899048459,-2052.03,9.267e-05,2]
[347518168,1735899048472,-500.0,9.267e-05,2]
[347518169,1735899048485,-500.0,9.267e-05,2]
[347518170,1735899048498,-967.71,9.267e-05,2]
[347518171,1735899048511,-1095.92,9.267e-05,2]
[347518172,1735899048524,-794.44,9.267e-05,2]
[347518173,1735899048537,-2811.56,9.267e-05,2]
[347518174,1735899048550,-1778.85,9.267e-05,2]
[347518175,1735899048563,-500.0,9.267e-05,2]
[347518176,1735899048576,-500.0,9.267e-05,2]
[347518177,1735899048590,-1250.77,9.267e-05,2]
[347518178,1735899048602,-500.0,9.267e-05,2]
[347518179,1735899048616,-500.0,9.267e-05,2]
[347518180,1735899048628,-756.38,9.267e-05,2]
[347518181,1735899048641,-612.54,9.267e-05,2]
[347518182,1735899048654,-822.38,9.267e-05,2]
[347518183,1735899048667,-657.68,9.267e-05,2]
[347518184,1735899048680,-500.0,9.267e-05,2]
[347518185,1735899048693,-500.0,9.267e-05,2]
[347518186,1735899048706,-2328.96,9.267e-05,2]
[347518187,1735899048719,-561.93350562,9.267e-05,2]
[347518188,1735899048733,-500.0,9.267e-05,2]
[347518189,1735899048745,-500.0,9.267e-05,2]
[347518190,1735899048758,-3102.7,9.267e-05,2]
[347518191,1735899048771,-667.58,9.267e-05,2]
[347518192,1735899048784,-500.0,9.267e-05,2]
[347518193,1735899048798,-500.0,9.267e-05,2]
[347518194,1735899048811,-500.0,9.267e-05,2]
[347518195,1735899048824,-1026.14,9.267e-05,2]
[347518196,1735899048837,-500.0,9.267e-05,2]
[347518197,1735899048850,-675.27,9.267e-05,2]
[347518198,1735899048862,-736.76,9.267e-05,2]
[347518199,1735899048876,-500.0,9.267e-05,2]
[347518200,1735899048888,-500.0,9.267e-05,2]
[347518201,1735899048900,-3670.42,9.267e-05,2]
[347518202,1735899048913,-500.0,9.267e-05,2]
[347518203,1735899048926,-500.0,9.267e-05,2]
[347518204,1735899048938,-1911.43,9.267e-05,2]
[347518205,1735899048951,-500.0,9.267e-05,2]
[347518206,1735899048964,-813.26,9.267e-05,2]
[347518207,1735899048978,-500.0,9.267e-05,2]
[347518208,1735899048990,-500.0,9.267e-05,2]
[347518209,1735899049003,-774.31,9.267e-05,2]
[347518210,1735899049015,-672.41,9.267e-05,2]
[347518211,1735899049029,-4533.91,9.267e-05,2]
[347518212,1735899049042,-1084.39,9.267e-05,2]
[347518213,1735899049057,-500.0,9.267e-05,2]
[347518214,1735899049070,-841.21,9.267e-05,2]
[347518215,1735899049083,-500.0,9.267e-05,2]
[347518216,1735899049096,-1629.35,9.267e-05,2]
[347518217,1735899049108,-794.76,9.267e-05,2]
[347518218,1735899049121,-1434.93,9.267e-05,2]
[347518219,1735899049134,-505.44717036,9.267e-05,2]
[347518220,1735899049147,-2007.66,9.267e-05,2]
[347518221,1735899049160,-500.0,9.267e-05,2]
[347518222,1735899049172,-517.99,9.267e-05,2]
[347518223,1735899049186,-880.0,9.267e-05,2]
[347518224,1735899049198,-460.21654168,9.267e-05,2]
[347518225,1735899049210,-1513.11,9.267e-05,2]
[347518226,1735899049223,-500.0,9.267e-05,2]
[347518227,1735899049236,-500.0,9.267e-05,2]
[347518228,1735899049250,-5599.2,9.267e-05,2]
[347518229,1735899049263,-500.0,9.267e-05,2]
[347518230,1735899049277,-500.0,9.267e-05,2]
[347518231,1735899049290,-1279.82,9.267e-05,2]
[347518232,1735899049302,-529.15,9.267e-05,2]
[347518233,1735899049315,-500.0,9.267e-05,2]
[347518234,1735899049328,-616.51,9.267e-05,2]
[347518235,1735899049341,-871.61,9.267e-05,2]
[347518236,1735899049354,-500.0,9.267e-05,2]
[347518237,1735899049367,-2693.09,9.267e-05,2]
[347518238,1735899049379,-2200.43,9.267e-05,2]
[347518239,1735899049392,-1012.43,9.267e-05,2]
[347518240,1735899049405,-658.22,9.267e-05,2]
[347518241,1735899049418,-1456.51,9.267e-05,2]
[347518242,1735899049430,-5405.48,9.267e-05,2]
[347518243,1735899049443,-337.46504468,9.267e-05,2]
[347518244,1735899049456,-500.0,9.267e-05,2]
[347518245,1735899049468,-500.0,9.267e-05,2]
[347518246,1735899049481,-1482.84,9.267e-05,2]
[347518247,1735899049493,-500.0,9.267e-05,2]
[347518248,1735899049506,-17364.02,9.267e-05,2]
[347518249,1735899049518,-500.0,9.267e-05,2]
[347518250,1735899049530,-500.0,9.267e-05,2]
[347518251,1735899049543,-500.0,9.267e-05,2]
[347518252,1735899049556,-500.0,9.267e-05,2]
[347518253,1735899049568,-1414.67,9.267e-05,2]
[347518254,1735899049582,-500.0,9.267e-05,2]
[347518255,1735899049595,-1958.47,9.267e-05,2]
[347518256,1735899049608,-500.0,9.267e-05,2]
[347518257,1735899049621,-500.0,9.267e-05,2]
[347518258,1735899049634,-1407.8,9.267e-05,2]
[347518259,1735899049646,-500.0,9.267e-05,2]
[347518260,1735899049659,-938.53,9.267e-05,2]
[347518261,1735899049672,-500.0,9.267e-05,2]
[347518262,1735899049685,-500.0,9.267e-05,2]
[347518263,1735899049697,-2646.53,9.267e-05,2]
[347518264,1735899049709,-500.0,9.267e-05,2]
[347518265,1735899049722,-500.0,9.267e-05,2]
[347518266,1735899049735,-500.0,9.267e-05,2]
[347518267,1735899049749,-500.0,9.267e-05,2]
[347518268,1735899049762,-654.53,9.267e-05,2]
[347518269,1735899049774,-500.0,9.267e-05,2]
[347518270,1735899049787,-500.0,9.267e-05,2]
[347518271,1735899049803,-2862.82,9.267e-05,2]
[347518272,1735899049815,-2111.92,9.267e-05,2]
[347518273,1735899049829,-1898.21,9.267e-05,2]
[347518274,1735899049842,-873.16,9.267e-05,2]
[347518275,1735899049856,-500.0,9.267e-05,2]
[347518276,1735899049871,-3493.09,9.267e-05,2]
[347518277,1735899049883,-500.0,9.267e-05,2]
[347518278,1735899049892,-841.42,9.267e-05,2]
[347518279,1735899049902,-500.0,9.267e-05,2]
[347518280,1735899049911,-500.0,9.267e-05,2]
[347518281,1735899049920,-640.53522863,9.267e-05,2]
[347518282,1735899049930,-500.0,9.267e-05,2]
[347518283,1735899049939,-1486.74,9.267e-05,2]
[347518284,1735899049949,-3016.05,9.267e-05,2]
[347518285,1735899049958,-526.32387161,9.267e-05,2]
[347518286,1735899049968,-500.0,9.267e-05,2]
[347518287,1735899049977,-4260.19,9.267e-05,2]
[347518288,1735899049987,-1157.71,9.267e-05,2]
[347518289,1735899049996,-500.0,9.267e-05,2]
[347518290,1735899050005,-500.0,9.267e-05,2]
[347518291,1735899050015,-7947.27,9.267e-05,2]
[347518292,1735899050024,-513.06,9.267e-05,2]
[347518293,1735899050034,-5956.16,9.267e-05,2]
[347518294,1735899050043,-1067.74,9.267e-05,2]
[347518295,1735899050052,-500.0,9.267e-05,2]
[347518296,1735899050061,-4225.86,9.267e-05,2]
[347518297,1735899050070,-826.63,9.267e-05,2]
[347518298,1735899050080,-550.17,9.267e-05,2]
[347518299,1735899050089,-503.21016895,9.267e-05,2]
[347518300,1735899050098,-870.05,9.267e-05,2]
[347518301,1735899050108,-500.0,9.267e-05,2]
[347518302,1735899050117,-524.57745042,9.267e-05,2]
[347518303,1735899050127,-2613.87,9.267e-05,2]
[347518304,1735899050136,-501.62912881,9.267e-05,2]
[347518305,1735899050145,-1571.54,9.267e-05,2]
[347518306,1735899050155,-1391.92,9.267e-05,2]
[347518307,1735899050687,-418.24282764,9.267e-05,2]
[347518308,1735899050711,-11943.79,9.267e-05,2]
[347518309,1735899050738,-503.03803374,9.267e-05,2]
[347518310,1735899050748,-686.14,9.267e-05,2]
[347518311,1735899050758,-1098.85,9.267e-05,2]
[347518312,1735899050767,-500.0,9.267e-05,2]
[347518313,1735899050776,-2241.48,9.267e-05,2]
[347518314,1735899050786,-500.0,9.267e-05,2]
[347518315,1735899050799,-7474.49,9.267e-05,2]
[347518316,1735899050808,-500.0,9.267e-05,2]
[347518317,1735899050817,-500.0,9.267e-05,2]
[347518318,1735899050826,-500.0,9.267e-05,2]
[347518319,1735899050835,-1819.72,9.267e-05,2]
[347518320,1735899050845,-1775.49,9.267e-05,2]
[347518321,1735899050854,-500.0,9.267e-05,2]
[347518322,1735899050863,-502.08796493,9.267e-05,2]
[347518323,1735899050873,-500.0,9.267e-05,2]
[347518324,1735899050882,-500.0,9.267e-05,2]
[347518325,1735899050891,-2088.1,9.267e-05,2]
[347518326,1735899050900,-14086.53,9.267e-05,2]
[347518327,1735899050910,-763.38,9.267e-05,2]
[347518328,1735899050919,-3859.73,9.267e-05,2]
[347518329,1735899050928,-500.0,9.267e-05,2]
[347518330,1735899050937,-500.0,9.267e-05,2]
[347518331,1735899050946,-500.0,9.267e-05,2]
[347518332,1735899050955,-500.0,9.267e-05,2]
[347518333,1735899050965,-535.05,9.267e-05,2]
[347518334,1735899050975,-1719.15,9.267e-05,2]
[347518335,1735899050984,-7175.32,9.267e-05,2]
[347518336,1735899050994,-2905.08,9.267e-05,2]
[347518337,1735899051003,-500.0,9.267e-05,2]
[347518338,1735899051012,-2360.19,9.267e-05,2]
[347518339,1735899051021,-4455.38,9.267e-05,2]
[347518340,1735899051030,-2244.11,9.267e-05,2]
[347518341,1735899051039,-500.0,9.267e-05,2]
[347518342,1735899051048,-503.96889454,9.267e-05,2]
[347518343,1735899051057,-500.0,9.267e-05,2]
[347518344,1735899051068,-500.0,9.267e-05,2]
[347518345,1735899051078,-500.0,9.267e-05,2]
[347518346,1735899051090,-1711.57,9.267e-05,2]
[347518347,1735899051100,-500.0,9.267e-05,2]
[347518348,1735899051109,-3203.71,9.267e-05,2]
[347518349,1735899051118,-816.85,9.267e-05,2]
[347518350,1735899051127,-500.0,9.267e-05,2]
[347518351,1735899051136,-500.0,9.267e-05,2]
[347518352,1735899051145,-633.55,9.267e-05,2]
[347518353,1735899051154,-2965.99,9.267e-05,2]
[347518354,1735899051164,-1540.95,9.267e-05,2]
[347518355,1735899051172,-500.0,9.267e-05,2]
[347518356,1735899051182,-1741.81,9.267e-05,2]
[347518357,1735899051191,-5616.67,9.267e-05,2]
[347518358,1735899051200,-500.0,9.267e-05,2]
[347518359,1735899051209,-641.25433126,9.267e-05,2]
[347518360,1735899051218,-3163.14,9.267e-05,2]
[347518361,1735899051229,-909.09,9.267e-05,2]
[347518362,1735899051239,-523.37,9.267e-05,2]
[347518363,1735899051248,-794.13,9.267e-05,2]
[347518364,1735899051257,-5372.13,9.267e-05,2]
[347518365,1735899051266,-763.69,9.267e-05,2]
[347518366,1735899051275,-1072.55392903,9.268e-05,3]
[347518367,1735899051284,-2063.1,9.268e-05,2]
[347518368,1735899051294,-633.97,9.268e-05,2]
[347518369,1735899051303,-840.72,9.268e-05,2]
[347518370,1735899051312,-3502.47,9.268e-05,2]
[347518371,1735899051322,-500.0,9.268e-05,2]
[347518372,1735899051331,-2694.16,9.268e-05,2]
[347518373,1735899051340,-1883.49,9.268e-05,2]
[347518374,1735899051349,-500.0,9.268e-05,2]
[347518375,1735899051358,-2104.98,9.268e-05,2]
[347518376,1735899051368,-1926.9,9.268e-05,2]
[347518377,1735899051377,-1569.07,9.268e-05,2]
[347518378,1735899051386,-3154.63,9.268e-05,2]
[347518379,1735899051395,-1736.96,9.268e-05,2]
[347518380,1735899051404,-500.0,9.268e-05,2]
[347518381,1735899051414,-3365.63,9.268e-05,2]
[347518382,1735899051423,-500.0,9.268e-05,2]
[347518383,1735899051432,-1739.94,9.268e-05,2]
[347518384,1735899051441,-500.0,9.268e-05,2]
[347518385,1735899051450,-1489.58,9.268e-05,2]
[347518386,1735899051459,-2635.77,9.268e-05,2]
[347518387,1735899051469,-2160.62,9.268e-05,2]
[347518388,1735899051479,-2244.92,9.268e-05,2]
[347518389,1735899051488,-1379.14,9.268e-05,2]
[347518390,1735899051498,-500.0,9.268e-05,2]
[347518391,1735899051507,-2703.1,9.268e-05,2]
[347518392,1735899051516,-2029.09,9.268e-05,2]
[347518393,1735899051526,-500.0,9.268e-05,2]
[347518394,1735899051535,-1449.57,9.268e-05,2]
[347518395,1735899051544,-1020.83,9.268e-05,2]
[347518396,1735899051553,-1828.52,9.268e-05,2]
[347518397,1735899051562,-500.0,9.268e-05,2]
[347518398,1735899051571,-500.0,9.268e-05,2]
[347518399,1735899051580,-1561.95,9.268e-05,2]
[347518400,1735899051589,-1935.63,9.268e-05,2]
[347518401,1735899051598,-1469.42,9.268e-05,2]
[347518402,1735899051607,-1272.33,9.268e-05,2]
[347518403,1735899051616,-500.0,9.268e-05,2]
[347518404,1735899051626,-1779.94,9.268e-05,2]
[347518405,1735899051635,-3086.82,9.268e-05,2]
[347518406,1735899051643,-1603.39,9.268e-05,2]
[347518407,1735899051653,-2726.89,9.268e-05,2]
[347518408,1735899051663,-882.99,9.268e-05,2]
[347518409,1735899051672,-2988.14,9.268e-05,2]
[347518410,1735899051681,-1722.33,9.268e-05,2]
[347518411,1735899051692,-1499.24,9.268e-05,2]
[347518412,1735899051702,-1508.0,9.268e-05,2]
[347518413,1735899051713,-1633.43,9.268e-05,2]
[347518414,1735899051722,-2673.16,9.268e-05,2]
[347518415,1735899051732,-971.61,9.268e-05,2]
[347518416,1735899051742,-1545.01,9.268e-05,2]
[347518417,1735899051751,-2426.58,9.268e-05,2]
[347518418,1735899051760,-1055.78,9.268e-05,2]
[347518419,1735899051769,-2097.28,9.268e-05,2]
[347518420,1735899051779,-1785.12,9.268e-05,2]
[347518421,1735899051788,-2481.7,9.268e-05,2]
[347518422,1735899051802,-1593.63,9.268e-05,2]
[347518423,1735899051812,-7413.04,9.268e-05,2]
[347518424,1735899051821,-1854.72,9.268e-05,2]
[347518425,1735899051830,-500.0,9.268e-05,2]
[347518426,1735899051839,-1546.28,9.268e-05,2]
[347518427,1735899051848,-2430.33,9.268e-05,2]
[347518428,1735899051858,-2470.66,9.268e-05,2]
[347518429,1735899051867,-1077.55,9.268e-05,2]
[347518430,1735899051877,-1338.81,9.268e-05,2]
[347518431,1735899051886,-1012.48,9.268e-05,2]
[347518432,1735899051895,-589.65,9.268e-05,2]
[347518433,1735899051904,-1910.52,9.268e-05,2]
[347518434,1735899051913,-1575.88,9.268e-05,2]
[347518435,1735899051922,-1767.14,9.268e-05,2]
[347518436,1735899051931,-3120.72,9.268e-05,2]
[347518437,1735899051940,-1243.07,9.268e-05,2]
[347518438,1735899051949,-628.56,9.268e-05,2]
[347518439,1735899051958,-2098.2,9.268e-05,2]
[347518440,1735899051967,-2396.83,9.268e-05,2]
[347518441,1735899051978,-2077.26,9.268e-05,2]
[347518442,1735899051987,-2305.0,9.268e-05,2]
[347518443,1735899051996,-500.0,9.268e-05,2]
[347518444,1735899052005,-2541.39,9.268e-05,2]
[347518445,1735899052015,-500.0,9.268e-05,2]
[347518446,1735899052025,-500.0,9.268e-05,2]
[347518447,1735899052035,-877.52,9.268e-05,2]
[347518448,1735899052045,-891.56,9.268e-05,2]
[347518449,1735899052054,-500.0,9.268e-05,2]
[347518450,1735899052064,-1583.94,9.268e-05,2]
[347518451,1735899052073,-500.0,9.268e-05,2]
[347518452,1735899052082,-991.98,9.268e-05,2]
[347518453,1735899052092,-1150.46,9.268e-05,2]
[347518454,1735899052102,-953.82,9.268e-05,2]
[347518455,1735899052112,-2730.0,9.268e-05,2]
[347518456,1735899052121,-1534.38,9.268e-05,2]
[347518457,1735899052130,-4408.05,9.268e-05,2]
[347518458,1735899052139,-3531.97,9.268e-05,2]
[347518459,1735899052148,-907.79,9.268e-05,2]
[347518460,1735899052157,-3201.23,9.268e-05,2]
[347518461,1735899052167,-666.0,9.268e-05,2]
[347518462,1735899052176,-501.03672191,9.269e-05,2]
[347518463,1735899052186,-500.0,9.269e-05,2]
[347518464,1735899052196,-580.53368935,9.269e-05,2]
[347518465,1735899052205,-500.0,9.269e-05,2]
[347518466,1735899052215,-501.85174169,9.269e-05,2]
[347518467,1735899052224,-500.0,9.269e-05,2]
[347518468,1735899052233,-500.0,9.269e-05,2]
[347518469,1735899052243,-500.0,9.269e-05,2]
[347518470,1735899052252,-501.95246315,9.269e-05,2]
[347518471,1735899052262,-1032.62,9.269e-05,2]
[347518472,1735899052271,-324.94156929,9.269e-05,2]
[347518473,1735899052281,-645.18457993,9.269e-05,2]
[347518474,1735899052291,-1273.71,9.269e-05,2]
[347518475,1735899052300,-500.0,9.269e-05,2]
[347518476,1735899052309,-500.0,9.269e-05,2]
[347518477,1735899052318,-500.0,9.269e-05,2]
[347518478,1735899052328,-500.0,9.269e-05,2]
[347518479,1735899052337,-500.0,9.269e-05,2]
[347518480,1735899052348,-642.8,9.269e-05,2]
[347518481,1735899052357,-389.91919735,9.269e-05,2]
[347518482,1735899052367,-500.0,9.269e-05,2]